bitfinex-derivatives/quotes_SOLF0:USTF0_20250820
["timestamp","ask_amount","ask_price","bid_price","bid_amount"]
[1755732766170,5.3499,186.89,186.87,3.05]
[1755732766375,180.35302833,186.9,186.82,5.388633]
[1755732766564,5.3489,186.92,186.89,3.05]
[1755732766767,5.3489,186.92,186.9,3.05]
[1755732767071,135.8287,186.93,186.9,3.05]
[1755732767274,135.8287,186.93,186.91,3.05]
[1755732767573,130.48,186.93,186.91,3.05]
[1755732768773,130.97,186.93,186.89,5.3497]
[1755732769073,130.48,186.93,186.9,3.05]
[1755732769269,130.48,186.93,186.85,6.8379144]
[1755732769473,130.48,186.93,186.91,3.05]
[1755732770271,130.48,186.93,186.86,4.4992814]
[1755732770272,0.49,186.92,186.89,5.3497]
[1755732770464,0.49,186.92,186.89,3.05]
[1755732770661,0.49,186.92,186.85,6.8379144]
[1755732770866,0.49,186.92,186.9,3.05]
[1755732771063,130.97,186.93,186.9,3.05]
[1755732771573,136.3188,186.93,186.9,3.05]
[1755732772570,5.3492,186.91,186.9,3.05]
[1755732772771,0.49,186.92,186.85,3.05]
[1755732773164,5.35,186.89,186.83,4.4992814]
[1755732773368,5.35,186.89,186.87,3.05]
[1755732774571,5.3495,186.9,186.87,3.05]
[1755732774774,0.49,186.92,186.84,7.5492814]
[1755732774967,0.49,186.92,186.85,3.05]
[1755732775168,5.3497,186.9,186.86,5.3505]
[1755732775368,5.3497,186.9,186.88,3.05]
[1755732775568,0.49,186.92,186.87,5.3503]
[1755732775769,5.3495,186.91,186.88,3.05]
[1755732775965,130.46,186.93,186.88,3.05]
[1755732776169,0.49,186.9,186.85,8.4009]
[1755732776374,5.3498,186.89,186.87,3.05]
[1755732776676,0.49,186.9,186.88,3.05]
[1755732777074,130.97,186.94,186.88,3.05]
[1755732777775,5.3491,186.92,186.89,3.05]
[1755732777976,5.3491,186.92,186.9,3.05]
[1755732779979,5.3488,186.93,186.9,3.05]
[1755732780178,5.8388,186.93,186.9,3.05]
[1755732780664,5.8388,186.93,186.91,3.05]
[1755732781479,130.97,186.95,186.92,3.05]
[1755732781680,0.49,186.95,186.92,3.05]
[1755732782379,132.798633,186.98,186.92,3.05]
[1755732783081,5.838,186.96,186.93,5.3486]
[1755732783382,0.49,186.94,186.89,3.05]
[1755732783569,5.3483,186.95,186.92,3.05]
[1755732783880,5.3483,186.95,186.88,2.338633]
[1755732784184,5.3484,186.94,186.93,3.05]
[1755732784373,0.49,186.97,186.89,3.05]
[1755732784581,5.3477,186.97,186.92,5.3488]
[1755732784781,5.8377,186.97,186.94,3.05]
[1755732785672,5.8377,186.97,186.92,5.3488]
[1755732785874,5.3477,186.97,186.93,5.3486]
[1755732786073,5.3477,186.97,186.95,3.05]
[1755732786378,490.61,187.0,186.93,3.05]
[1755732786379,5.8378,186.96,186.93,3.05]
[1755732786577,0.49,186.95,186.89,3.05]
[1755732786881,5.3484,186.94,186.9,3.05]
[1755732787081,5.3484,186.94,186.91,3.05]
[1755732788282,5.3487,186.93,186.91,3.05]
[1755732788877,5.8387,186.93,186.91,3.05]
[1755732789085,5.3484,186.94,186.91,3.05]
[1755732789382,5.8384,186.94,186.91,3.05]
[1755732789883,5.3487,186.93,186.91,3.05]
[1755732792789,5.3485,186.94,186.91,3.05]
[1755732793182,0.49,186.95,186.91,3.05]
[1755732793376,0.49,186.92,186.9,11.71]
[1755732793879,5.839,186.92,186.9,11.71]
[1755732795481,5.3492,186.91,186.9,11.71]
[1755732796083,5.8391,186.92,186.9,11.71]
[1755732796790,5.8391,186.92,186.9,14.76]
[1755732797291,5.3492,186.91,186.9,11.71]
[1755732798987,0.49,186.92,186.9,11.71]
[1755732799187,490.12,187.0,186.9,11.71]
[1755732799188,2.338633,186.97,186.9,14.76]
[1755732799489,0.49,186.93,186.9,14.76]
[1755732799690,5.349,186.92,186.9,14.76]
[1755732802389,0.49,186.97,186.91,3.05]
[1755732802894,490.61,187.0,186.91,3.05]
[1755732803194,5.3474,186.98,186.91,3.05]
[1755732803398,130.91,187.0,186.91,3.05]
[1755732803690,0.49,186.99,186.91,3.05]
[1755732804793,0.49,186.97,186.91,3.05]
[1755732805187,5.3482,186.95,186.91,8.3991]
[1755732805383,5.3482,186.95,186.91,5.3491]
[1755732805583,5.3482,186.95,186.92,3.05]
[1755732806094,5.3482,186.95,186.92,2.79]
[1755732806293,5.3479,186.96,186.93,2.79]
[1755732806490,5.3479,186.96,186.94,2.79]
[1755732807098,5.8376,186.97,186.94,2.79]
[1755732807301,2.828633,187.03,186.91,2.79]
[1755732807497,0.49,187.03,186.94,2.79]
[1755732807796,0.49,187.03,187.0,2.79]
[1755732808002,0.49,187.03,187.01,2.79]
[1755732808204,5.3454,187.05,187.01,5.3463]
[1755732808403,5.3454,187.05,187.02,2.79]
[1755732808904,0.49,187.07,187.03,2.79]
[1755732809102,359.52,187.1,187.04,2.79]
[1755732809299,0.49,187.08,187.01,2.79]
[1755732809499,0.49,187.05,187.01,8.1362]
[1755732810000,0.49,187.05,187.02,2.79]
[1755732810195,0.49,187.04,187.01,5.38219753]
[1755732810398,0.49,187.04,187.01,8.17219753]
[1755732810801,2.338633,187.05,187.01,0.03599753]
[1755732811002,0.49,187.02,187.01,0.03599753]
[1755732811396,5.8361,187.02,187.01,0.03599753]
[1755732811707,0.49,187.02,187.01,0.03599753]
[1755732811902,5.8361,187.02,187.01,0.03599753]
[1755732812607,0.49,187.02,187.01,0.03599753]
[1755732813703,5.8361,187.02,187.01,0.03599753]
[1755732814710,0.49,187.02,187.01,0.03599753]
[1755732814904,5.3459,187.03,187.01,0.03599753]
[1755732815113,5.8359,187.03,187.01,0.03599753]
[1755732817720,5.8361,187.02,187.01,0.03599753]
[1755732818120,0.49,187.05,187.01,0.03599753]
[1755732818413,2.338633,187.05,187.01,0.03599753]
[1755732818818,5.8361,187.03,187.01,0.03599753]
[1755732819021,0.49,187.02,187.01,0.03599753]
[1755732819410,5.8361,187.02,187.01,0.03599753]
[1755732820327,0.49,187.02,187.01,0.03599753]
[1755732820917,2.338633,187.05,187.01,0.03599753]
[1755732821125,0.49,187.03,187.01,0.03599753]
[1755732821622,5.3459,187.03,187.01,0.03599753]
[1755732821924,0.49,187.02,187.01,0.03599753]
[1755732823822,0.49,187.04,187.01,0.03599753]
[1755732824023,5.836,187.03,187.01,0.03599753]
[1755732824418,0.49,187.02,187.01,0.03599753]
[1755732824816,2.338633,187.06,187.01,2.82599753]
[1755732825019,2.828633,187.06,187.02,2.79]
[1755732825521,5.3454,187.05,187.02,2.79]
[1755732827020,5.3454,187.05,187.03,2.79]
[1755732827722,0.49,187.06,187.01,2.82599753]
[1755732827919,2.828633,187.06,187.01,0.03599753]
[1755732828225,5.836,187.03,187.01,0.03599753]
[1755732828723,5.346,187.03,187.01,2.82599753]
[1755732829126,5.836,187.03,187.01,2.82599753]
[1755732829518,5.836,187.03,187.01,0.03599753]
[1755732829931,5.346,187.03,187.01,2.82599753]
[1755732830427,5.3456,187.04,187.02,2.79]
[1755732830618,2.828633,187.06,187.02,2.79]
[1755732830819,2.338633,187.06,187.02,2.79]
[1755732831014,0.49,187.04,187.02,2.79]
[1755732831525,5.3458,187.03,187.02,2.79]
[1755732831827,0.49,187.05,187.01,0.03599753]
[1755732832420,5.8361,187.02,187.01,0.03599753]
[1755732833230,0.49,187.01,186.91,7.28333121]
[1755732833430,2.828633,186.98,186.91,2.79]
[1755732833731,5.348,186.96,186.92,5.3488]
[1755732834230,5.348,186.96,186.95,2.79]
[1755732834728,5.38466092,186.96,186.95,2.79]
[1755732835131,0.03666092,186.96,186.95,2.79]
[1755732835631,5.38446092,186.96,186.95,2.79]
[1755732835931,5.38446092,186.96,186.92,8.3088]
[1755732836137,5.38446092,186.96,186.93,2.96]
[1755732836827,5.38446092,186.96,186.94,2.96]
[1755732837227,5.3481,186.95,186.91,5.3491]
[1755732837420,0.49,186.94,186.89,4.49333121]
[1755732837621,0.49,186.94,186.9,2.96]
[1755732837929,5.3489,186.93,186.9,2.96]
[1755732838330,5.3489,186.93,186.91,2.96]
[1755732840737,5.3489,186.92,186.91,2.96]
[1755732841337,5.3488,186.93,186.91,2.96]
[1755732844632,0.03666354,186.94,186.92,2.96]
[1755732845431,0.03666354,186.94,186.9,5.3493]
[1755732845629,5.3489,186.93,186.9,2.96]
[1755732845824,0.49,186.93,186.9,2.96]
[1755732846438,5.3491,186.92,186.88,5.3499]
[1755732846629,5.3491,186.92,186.91,2.96]
[1755732848334,5.3491,186.92,186.88,5.3499]
[1755732848545,0.49,186.93,186.87,129.45924141]
[1755732848842,0.49,186.93,186.86,17.84]
[1755732849036,0.49,186.93,186.87,2.96]
[1755732850536,5.3499,186.89,186.87,2.96]
[1755732851336,5.3499,186.89,186.88,2.96]
[1755732854145,5.3501,186.88,186.86,17.84]
[1755732854940,5.3504,186.87,186.86,14.88]
[1755732855847,5.8404,186.87,186.86,14.88]
[1755732856046,5.3502,186.88,186.86,17.84]
[1755732857149,5.3504,186.87,186.86,17.84]
[1755732857548,5.3504,186.87,186.86,14.88]
[1755732859650,5.8404,186.87,186.86,14.88]
[1755732863141,5.3508,186.86,186.85,2.96]
[1755732874162,5.3511,186.85,186.82,2.92]
[1755732874357,0.49,186.86,186.83,2.92]
[1755732874862,5.3511,186.85,186.84,2.92]
[1755732878665,5.3515,186.83,186.82,2.92]
[1755732879161,1.49764783,186.86,186.81,128.01027301]
[1755732879359,1.49764783,186.86,186.84,2.92]
[1755732879766,5.3509,186.85,186.84,2.92]
[1755732880265,5.3508,186.86,186.82,2.92]
[1755732880666,5.3508,186.86,186.83,5.3513]
[1755732880866,5.3508,186.86,186.85,2.92]
[1755732883868,0.03599178,186.87,186.85,2.92]
[1755732884067,0.49,186.86,186.84,2.92]
[1755732884567,5.8409,186.86,186.84,2.92]
[1755732884976,0.49,186.86,186.84,2.92]
[1755732885676,0.03599178,186.87,186.86,2.92]
[1755732886573,5.38649178,186.87,186.86,2.92]
[1755732888175,5.3507,186.86,186.84,9.84443121]
[1755732888376,5.3507,186.86,186.85,2.92]
[1755732888878,5.38639178,186.87,186.86,2.92]
[1755732889875,5.3508,186.86,186.84,7.41333121]
[1755732890179,5.3508,186.86,186.85,2.92]
[1755732890974,0.03599178,186.87,186.86,2.92]
[1755732891279,0.03599178,186.87,186.86,8.91097904]
[1755732892371,0.03599178,186.87,186.86,7.41333121]
[1755732892577,0.03599178,186.87,186.86,4.49333121]
[1755732893482,0.03599178,186.87,186.85,4.49333121]
[1755732893680,5.3507,186.86,186.85,4.49333121]
[1755732893879,0.52599178,186.87,186.85,4.49333121]
[1755732894274,5.38649178,186.87,186.84,4.49333121]
[1755732894485,5.87649178,186.87,186.84,4.49333121]
[1755732894684,5.87649178,186.87,186.84,7.41333121]
[1755732898582,0.03599178,186.87,186.85,3.04]
[1755732898785,0.03599178,186.87,186.86,3.04]
[1755732900384,5.38639178,186.87,186.85,9.84403121]
[1755732901080,0.5,186.86,186.85,4.49333121]
[1755732901282,5.8507,186.86,186.85,4.49333121]
[1755732902190,5.38649178,186.87,186.85,4.49333121]
[1755732902487,5.88649178,186.87,186.85,4.49333121]
[1755732903590,5.38649178,186.87,186.85,7.53333121]
[1755732903786,0.03599178,186.87,186.85,7.53333121]
[1755732903986,0.03599178,186.87,186.85,12.88423121]
[1755732904187,0.03599178,186.87,186.86,3.04]
[1755732904589,0.03599178,186.87,186.86,12.88403121]
[1755732904779,0.03599178,186.87,186.86,8.3907]
[1755732906491,0.03599178,186.87,186.86,14.38974187]
[1755732911394,0.03599178,186.87,186.86,5.3507]
[1755732912497,0.03599178,186.87,186.86,8.3907]
[1755732926404,0.03599178,186.87,186.86,10.72931669]
[1755732927608,0.03599178,186.87,186.86,8.3907]
[1755732928208,9.178e-05,186.87,186.86,8.3907]
[1755732928403,0.49,186.98,186.91,2.33861669]
[1755732928706,0.49,186.98,186.91,9.85159139]
[1755732929496,0.49,186.96,186.94,5.3483]
[1755732929704,0.49,186.95,186.94,5.3483]
[1755732930605,0.49,186.94,186.93,5.38519898]
[1755732931208,0.49,186.94,186.93,0.03659898]
[1755732932513,5.8384,186.94,186.93,0.03659898]
[1755732936506,0.49,186.94,186.93,0.03659898]
[1755732938412,5.8379,186.96,186.93,0.03659898]
[1755732939405,5.8372,186.98,186.94,5.3484]
[1755732939603,0.49,186.96,186.94,3.01]
[1755732939807,0.49,186.94,186.93,0.03659898]
[1755732940415,5.8376,186.97,186.93,5.38519898]
[1755732940615,0.49,186.96,186.93,8.39519898]
[1755732941106,0.49,186.95,186.93,5.38519898]
[1755732944809,0.49,186.95,186.93,0.03659898]
[1755732945012,5.8381,186.95,186.93,0.03659898]
[1755732945613,0.49,186.94,186.93,0.03659898]
[1755732945912,5.8384,186.94,186.93,0.03659898]
[1755732946504,5.3481,186.95,186.93,0.03659898]
[1755732946702,0.49,186.94,186.93,0.03659898]
[1755732948013,5.8384,186.94,186.93,0.03659898]
[1755732956320,5.3484,186.94,186.93,0.03659898]
[1755732956520,5.3484,186.94,186.93,2.97659898]
[1755732956915,5.3484,186.94,186.93,0.03659898]
[1755732957115,5.8484,186.94,186.93,0.03659898]
[1755732960423,5.3484,186.94,186.93,0.03659898]
[1755732961822,5.8484,186.94,186.93,0.03659898]
[1755732965732,5.8484,186.94,186.88,7.4429747]
[1755732965733,0.5,186.89,186.86,4.5029747]
[1755732965926,0.5,186.88,186.85,4.5029747]
[1755732966127,5.3507,186.86,186.85,7.4429747]
[1755732966729,5.3507,186.86,186.85,2.94]
[1755732966922,5.3507,186.86,186.85,7.4429747]
[1755732969830,5.3507,186.86,186.85,2.94]
[1755732970628,5.3512,186.84,186.83,4.5029747]
[1755732970828,5.3512,186.84,186.83,7.4429747]
[1755732974029,5.3512,186.84,186.83,2.94]
[1755732975031,5.351,186.85,186.83,2.94]
[1755732975233,5.351,186.85,186.84,2.94]
[1755732983026,1.53500446,186.87,186.85,2.94]
[1755732983232,1.53500446,186.87,186.86,2.94]
[1755732983432,0.03735479,186.87,186.86,5.3507]
[1755732983632,0.03735479,186.87,186.86,9.78834967]
[1755732983831,0.03735479,186.87,186.86,8.2907]
[1755732985936,0.03735479,186.87,186.86,8.3507]
[1755732986540,0.03735479,186.87,186.82,4.5029747]
[1755732986734,0.48,186.86,186.82,4.5029747]
[1755732986934,0.48,186.86,186.81,4.5029747]
[1755732987138,0.03735479,186.87,186.84,3.0]
[1755732987540,5.3507,186.86,186.84,3.0]
[1755732991143,0.03735479,186.87,186.84,8.3512]
[1755732991347,0.03735479,186.87,186.86,3.0]
[1755732992449,0.03735479,186.87,186.86,8.3507]
[1755732992653,0.03735479,186.87,186.86,3.0]
[1755732994550,0.03735479,186.87,186.86,8.3507]
[1755732995242,0.03735479,186.87,186.86,3.0]
[1755732995753,0.49,186.86,186.83,7.5029747]
[1755732996443,5.8407,186.86,186.83,9.8542747]
[1755732996649,5.3507,186.86,186.84,3.0]
[1755732999855,0.49,186.86,186.84,3.0]
[1755733000357,5.38785479,186.87,186.84,3.0]
[1755733000652,5.87785479,186.87,186.84,3.0]
[1755733000852,0.03735479,186.87,186.85,3.0]
[1755733001048,0.03735479,186.87,186.84,4.5029747]
[1755733001245,0.03735479,186.87,186.86,3.0]
[1755733002552,5.38775479,186.87,186.86,3.0]
[1755733004653,5.38775479,186.87,186.85,4.5029747]
[1755733004853,5.38775479,186.87,186.85,7.5029747]
[1755733005258,5.87775479,186.87,186.85,7.5029747]
[1755733006148,0.49,186.86,186.84,4.5029747]
[1755733006353,0.49,186.85,186.84,4.5029747]
[1755733007058,5.8409,186.85,186.84,4.5029747]
[1755733008552,5.3508,186.86,186.84,7.5029747]
[1755733008758,0.03735479,186.87,186.85,3.0]
[1755733009260,5.38775479,186.87,186.85,3.0]
[1755733009658,5.87775479,186.87,186.85,3.0]
[1755733010160,5.87775479,186.87,186.85,7.5029747]
[1755733010956,5.38775479,186.87,186.85,7.5029747]
[1755733013561,5.38775479,186.87,186.85,12.8538747]
[1755733014261,5.38775479,186.87,186.85,7.5029747]
[1755733015261,5.87775479,186.87,186.85,7.5029747]
[1755733018573,5.38775479,186.87,186.86,2.85]
[1755733018774,0.03735479,186.87,186.86,2.85]
[1755733019770,0.03735479,186.87,186.86,7.3529747]
[1755733020675,0.03735479,186.87,186.86,9.8536747]
[1755733020877,0.03735479,186.87,186.86,12.7036747]
[1755733024777,0.03735479,186.87,186.86,7.3529747]
[1755733024981,0.53735479,186.87,186.85,9.8537747]
[1755733025274,0.5,186.86,186.85,9.8537747]
[1755733025879,0.5,186.86,186.85,4.5029747]
[1755733027577,0.5,186.86,186.84,5.3511]
[1755733028275,0.5,186.86,186.84,8.2011]
[1755733028886,0.5,186.86,186.85,4.511639]
[1755733030584,5.8507,186.86,186.85,4.511639]
[1755733030779,1.53466377,186.87,186.84,4.511639]
[1755733030985,1.99730898,186.85,186.84,4.511639]
[1755733031477,7.34850898,186.85,186.83,4.511639]
[1755733031676,0.5,186.84,186.83,4.511639]
[1755733031879,0.03735479,186.87,186.84,2.85]
[1755733032085,0.03735479,186.87,186.84,6.00894798]
[1755733032382,0.03735479,186.87,186.86,2.85]
[1755733033183,0.03735479,186.87,186.86,8.2007]
[1755733033483,0.03735479,186.87,186.86,9.69800898]
[1755733033681,172.37737903,186.91,186.87,2.85]
[1755733033882,172.37737903,186.91,186.9,4.34730898]
[1755733034377,172.37737903,186.91,186.9,9.69680898]
[1755733035883,172.37737903,186.91,186.9,8.1995]
[1755733036291,130.38,186.97,186.91,2.85]
[1755733036487,130.38,186.97,186.91,7.36035879]
[1755733036882,0.54,186.96,186.92,8.1988]
[1755733037087,0.54,186.96,186.92,2.88658885]
[1755733037784,0.54,186.96,186.93,5.3486]
[1755733038089,0.54,186.96,186.93,8.1986]
[1755733040995,5.8878,186.96,186.93,8.1986]
[1755733045599,0.54,186.95,186.93,2.85]
[1755733046089,5.3478,186.96,186.94,2.77]
[1755733046295,0.53,186.96,186.93,8.1186]
[1755733046700,0.53,186.96,186.94,2.77]
[1755733047602,5.8778,186.96,186.94,2.77]
[1755733048400,172.08432665,187.0,186.97,2.77]
[1755733048600,0.53,187.03,186.93,2.77]
[1755733048802,130.85,187.03,186.93,2.77]
[1755733049300,130.85,187.03,186.96,0.04074216]
[1755733049496,5.3464,187.01,186.98,5.3471]
[1755733049701,5.8764,187.01,186.98,8.1171]
[1755733050602,5.91570077,187.01,186.98,5.3471]
[1755733050803,5.91570077,187.01,186.98,8.1171]
[1755733052407,0.56930077,187.01,186.98,8.1171]
[1755733052604,0.56930077,187.01,186.96,0.04074216]
[1755733052605,0.03930077,187.01,187.0,2.77]
[1755733056007,0.56930077,187.01,186.98,8.1171]
[1755733056307,0.03930077,187.01,186.99,2.77]
[1755733059809,0.03930077,187.01,187.0,8.1166]
[1755733060319,0.56930077,187.01,186.98,2.77]
[1755733060910,0.53,187.0,186.97,8.1173]
[1755733061310,7.7e-07,187.01,186.97,90.0]
[1755733061515,0.53,187.17,187.03,2.77]
[1755733061702,131.49,187.17,187.09,2.77]
[1755733061908,5.3426,187.15,187.1,5.3437]
[1755733062109,0.53,187.14,187.1,8.1137]
[1755733062308,0.53,187.13,187.1,8.1137]
[1755733062710,0.53,187.13,187.1,8.14810962]
[1755733062910,0.53,187.13,187.1,2.80440962]
[1755733063816,5.8732,187.12,187.1,0.03440962]
[1755733064008,0.53,187.12,187.1,0.03440962]
[1755733065003,0.53,187.12,187.1,2.80440962]
[1755733067213,0.53,187.12,187.1,0.03440962]
[1755733069118,5.343,187.13,187.1,0.03440962]
[1755733069515,0.53,187.12,187.1,0.03440962]
[1755733070120,0.53,187.13,187.1,0.03440962]
[1755733070615,5.3435,187.11,187.1,0.03440962]
[1755733070821,8.21053246,187.11,187.1,0.03440962]
[1755733071319,138.97053246,187.11,187.1,0.03440962]
[1755733077626,0.52,187.09,187.05,2.77]
[1755733077830,0.52,187.08,187.05,2.77]
[1755733078624,5.3449,187.06,187.05,2.77]
[1755733079024,5.3449,187.06,187.05,2.80988599]
[1755733079824,5.3448,187.07,187.06,3.05]
[1755733080024,5.3448,187.07,187.05,3.08988599]
[1755733080528,2.33703246,187.1,187.06,3.05]
[1755733080720,2.33703246,187.1,187.05,0.03988599]
[1755733080926,0.52,187.07,187.05,0.03988599]
[1755733081126,5.3449,187.06,187.05,0.03988599]
[1755733081328,5.3449,187.06,187.05,3.08988599]
[1755733082831,5.3449,187.06,187.05,0.03988599]
[1755733083040,5.8649,187.06,187.05,0.03988599]
[1755733085334,5.3447,187.07,187.06,3.05]
[1755733086333,130.56,187.09,187.05,0.03988599]
[1755733086536,130.56,187.09,187.07,3.05]
[1755733086940,130.62,187.1,187.06,3.05]
[1755733087731,130.62,187.1,187.09,3.05]
[1755733090741,0.52,187.09,187.05,3.08988599]
[1755733091244,5.3446,187.08,187.06,3.05]
[1755733091445,130.62,187.1,187.07,3.05]
[1755733091740,5.3441,187.09,187.05,0.03988599]
[1755733091936,0.52,187.12,187.06,3.05]
[1755733092142,130.68,187.11,187.06,3.05]
[1755733092345,130.68,187.11,187.05,0.03988599]
[1755733092644,136.0235,187.11,187.08,3.05]
[1755733093340,136.0235,187.11,187.06,5.3449]
[1755733093544,130.68,187.11,187.08,3.05]
[1755733093744,130.68,187.11,187.07,5.3446]
[1755733093946,130.68,187.11,187.09,3.05]
[1755733094245,136.0237,187.11,187.09,3.05]
[1755733094445,136.5437,187.11,187.08,3.05]
[1755733095349,136.0237,187.11,187.08,3.05]
[1755733095648,136.0237,187.11,187.09,3.05]
[1755733100250,130.68,187.11,187.08,5.3443]
[1755733100451,130.68,187.11,187.1,3.05]
[1755733101852,136.0235,187.11,187.1,3.05]
[1755733103855,136.0235,187.11,187.08,8.3943]
[1755733104152,136.5535,187.11,187.08,8.3943]
[1755733104555,136.5535,187.11,187.09,3.05]
[1755733104758,130.68,187.11,187.09,3.05]
[1755733105051,130.68,187.11,187.1,3.05]
[1755733105551,136.5535,187.11,187.08,8.3943]
[1755733105954,136.5535,187.11,187.08,5.3443]
[1755733106153,136.5535,187.11,187.09,2.99]
[1755733106354,131.21,187.11,187.09,2.99]
[1755733108743,131.21,187.11,187.08,5.3443]
[1755733108744,130.68,187.11,187.1,2.99]
[1755733111456,130.68,187.11,187.09,5.344]
[1755733111649,130.68,187.11,187.09,8.334]
[1755733113158,136.0235,187.11,187.09,8.334]
[1755733113858,130.68,187.11,187.09,8.334]
[1755733115066,130.68,187.11,187.09,2.99]
[1755733115363,131.2,187.11,187.09,2.99]
[1755733115662,130.68,187.11,187.09,2.99]
[1755733116262,131.2,187.11,187.09,2.99]
[1755733117356,131.2,187.11,187.09,8.334]
[1755733117564,130.68,187.11,187.1,2.99]
[1755733118864,130.68,187.11,187.09,5.344]
[1755733119157,130.68,187.11,187.09,8.334]
[1755733119662,131.2,187.11,187.09,2.99]
[1755733123558,131.2,187.11,187.09,8.334]
[1755733123966,0.52,187.09,187.06,2.99]
[1755733124366,0.52,187.09,187.07,2.99]
[1755733124862,0.52,187.08,187.05,4.518318]
[1755733125168,5.8649,187.06,187.05,0.03988599]
[1755733125362,0.52,187.06,187.05,0.03988599]
[1755733125965,5.8649,187.06,187.05,0.03988599]
[1755733127064,0.52,187.06,187.05,0.03988599]
[1755733129169,2.85703246,187.09,187.05,5.38508599]
[1755733129465,130.28,187.1,187.07,2.99]
[1755733129666,130.8,187.1,187.07,2.99]
[1755733129860,19.66015846,187.19,187.05,0.03988599]
[1755733129861,0.52,187.11,187.05,0.03988599]
[1755733130058,130.8,187.11,187.08,2.99]
[1755733130568,136.1435,187.11,187.08,8.37012623]
[1755733130774,0.52,187.09,187.08,0.03592623]
[1755733132371,5.8641,187.09,187.08,0.03592623]
[1755733134962,2.87703246,187.09,187.01,7.46843201]
[1755733135165,0.52,187.08,187.01,8.3362]
[1755733135573,0.52,187.04,187.02,5.346]
[1755733136574,5.97127785,187.22,187.08,2.8]
[1755733136774,2.82,187.23,187.15,2.8]
[1755733136963,2.82,187.23,187.19,5.341]
[1755733137164,2.82,187.22,187.2,6.81361213]
[1755733137374,173.5391604,187.22,187.21,4.83193055]
[1755733137577,311.4795604,187.22,187.21,4.83193055]
[1755733137771,306.1391604,187.22,187.2,0.03457936]
[1755733137971,2.82,187.21,187.2,0.03457936]
[1755733138172,8.1607,187.21,187.2,2.01661488]
[1755733138875,2.82,187.26,187.2,4.81661488]
[1755733139074,135.5,187.25,187.21,1.98203552]
[1755733139272,135.5,187.25,187.2,2.83457936]
[1755733139273,135.5,187.25,187.22,1.98203552]
[1755733139574,135.5,187.25,187.23,1.98203552]
[1755733139775,135.5,187.25,187.21,0.03533594]
[1755733139977,5.34,187.24,187.22,1.97851047]
[1755733140176,5.34,187.24,187.23,1.97851047]
[1755733141977,140.8395,187.25,187.23,1.97851047]
[1755733142177,137.9995,187.25,187.21,2.83533594]
[1755733142474,137.9995,187.25,187.22,1.97797928]
[1755733142675,140.8195,187.25,187.23,1.97797928]
[1755733142875,5.3398,187.24,187.21,2.83533594]
[1755733143179,5.3398,187.24,187.22,4.77797928]
[1755733143371,5.3398,187.24,187.23,1.97797928]
[1755733143870,5.3398,187.24,187.22,2.8]
[1755733146774,5.3401,187.23,187.21,0.03533594]
[1755733146971,5.3401,187.23,187.21,2.83533594]
[1755733147578,5.3399,187.24,187.21,2.83533594]
[1755733147982,135.48,187.25,187.21,2.83533594]
[1755733148985,5.3404,187.22,187.21,0.03533594]
[1755733149179,8.1604,187.22,187.21,0.03533594]
[1755733152476,5.3404,187.22,187.21,0.03533594]
[1755733155882,132.32,187.23,187.22,2.8]
[1755733157583,137.6602,187.23,187.22,2.8]